[Event "9th Holuj-Radzikowska Rapid 19"]
[Site "Wroclaw"]
[Date "2019.12.07"]
[Round "1"]
[White "Zatonskih, Anna"]
[Black "Antolak, Julia"]
[Result "1/2-1/2"]
[ECO "A46"]
[WhiteElo "2420"]
[BlackElo "2249"]
[Annotator "ChessBase"]
[PlyCount "242"]
[EventDate "2019.12.06"]
[EventType "team-tourn"]
[EventCountry "POL"]
[SourceTitle "playchess.com"]
[Source "ChessBase"]
[SourceQuality "1"]
[WhiteTeam "Team World"]
[BlackTeam "Team Poland"]
[TimeControl "900+10"]

1. d4 {[%emt 0:00:00]} Nf6 {[%emt 0:00:00]} 2. Nf3 {[%emt 0:00:00]} d6 {[%emt 0:00:00]} 3. g3 {[%emt 0:01:29]} Nbd7 {[%emt 0:00:00]} 4. Bg2 {[%emt 0:00:11]} e5 {[%emt 0:00:02]} 5. c4 {[%emt 0:00:37]} Be7 {[%emt 0:00:15]} 6. Nc3 {[%emt 0:00:02]} c6 {[%emt 0:00:05]} 7. e4 {[%emt 0:00:30]} O-O {[%emt 0:00:11]} 8. O-O {[%emt 0:00:03]} a6 {[%emt 0:00:02]} 9. a4 {[%emt 0:00:44]} a5 {[%emt 0:00:01]} 10. b3 {[%emt 0:01:30]} Re8 {[%emt 0:00:14]} 11. h3 {[%emt 0:01:53]} Bf8 {[%emt 0:00:21]} 12. Qc2 {[%emt 0:00:33]} exd4 {[%emt 0:00:29]} 13. Nxd4 {[%emt 0:00:01]} Nc5 {[%emt 0:00:03]} 14. Be3 {[%emt 0:01:29]} g6 {[%emt 0:00:46]} 15. Rfd1 {[%emt 0:00:24]} Qb6 {[%emt 0:00:18]} 16. Rab1 {[%emt 0:00:07]} Bg7 {[%emt 0:00:41]} 17. f4 {[%emt 0:00:18]} Qc7 {[%emt 0:02:42]} 18. Ndb5 {[%emt 0:01:41]} cxb5 {[%emt 0:00:20]} 19. Nxb5 {[%emt 0:00:01]} Qe7 {[%emt 0:01:11]} 20. Nxd6 {[%emt 0:00:01]} Na6 {[%emt 0:01:37]} 21. Nxe8 {[%emt 0:02:09]} Nxe8 {[%emt 0:00:05]} 22. Qf2 {[%emt 0:00:13]} Bd7 {[%emt 0:00:53]} 23. e5 {[%emt 0:00:53]} Bc6 {[%emt 0:00:22]} 24. Bd5 Nec7 {[%emt 0:00:52]} 25. Bxc6 {[%emt 0:01:10]} bxc6 {[%emt 0:00:02]} 26. Rd6 {[%emt 0:00:01]} Ne6 {[%emt 0:02:32]} 27. Rxc6 {[%emt 0:00:35]} Qb7 {[%emt 0:00:01]} 28. Rb6 {[%emt 0:00:09]} Qe4 {[%emt 0:00:03]} 29. Rd1 {[%emt 0:00:18]} Nb4 {[%emt 0:00:25]} 30. Rbd6 {[%emt 0:00:19]} Bf8 {[%emt 0:00:10]} 31. R6d2 {[%emt 0:00:24]} Rc8 {[%emt 0:00:24]} 32. Kh2 {[%emt 0:00:38]} h5 {[%emt 0:01:45]} 33. Rf1 {[%emt 0:01:03]} Bh6 {[%emt 0:00:24]} 34. Qf3 {[%emt 0:00:25]} Qxf3 {[%emt 0:00:50]} 35. Rxf3 {[%emt 0:00:00]} Bf8 {[%emt 0:00:11]} 36. g4 {[%emt 0:00:19]} hxg4 {[%emt 0:00:04]} 37. hxg4 {[%emt 0:00:00]} Rb8 {[%emt 0:00:06]} 38. f5 {[%emt 0:00:05]} Nd8 {[%emt 0:00:47]} 39. fxg6 {[%emt 0:00:26]} fxg6 {[%emt 0:00:01]} 40. Rf6 {[%emt 0:00:04]} Bg7 {[%emt 0:00:37]} 41. Rxg6 {[%emt 0:00:01]} Kh7 {[%emt 0:00:02]} 42. Rg5 {[%emt 0:00:01]} Nf7 {[%emt 0:00:12]} 43. Rh5+ {[%emt 0:00:01]} Kg6 {[%emt 0:00:09]} 44. e6 {[%emt 0:00:13]} Ne5 {[%emt 0:00:05]} 45. Kg3 {[%emt 0:00:25]} Rb7 {[%emt 0:00:55]} 46. Rg5+ {[%emt 0:00:34]} Kf6 {[%emt 0:00:03]} 47. Rf2+ {[%emt 0:00:05]} Kxe6 {[%emt 0:00:05]} 48. Bd4 {[%emt 0:00:38]} Nbc6 {[%emt 0:00:18]} 49. Bxe5 {[%emt 0:00:03]} Nxe5 {[%emt 0:00:05]} 50. Kg2 {[%emt 0:00:04]} Bf6 {[%emt 0:00:18]} 51. Rgf5 {[%emt 0:00:02]} Nxg4 {[%emt 0:00:07]} 52. Rxa5 {[%emt 0:00:22]} Nxf2 {[%emt 0:00:07]} 53. Kxf2 {[%emt 0:00:01]} Rxb3 {[%emt 0:00:01]} 54. Ra6+ {[%emt 0:00:01]} Ke5 {[%emt 0:00:12]} 55. a5 {[%emt 0:00:08]} Be7 {[%emt 0:00:08]} 56. Rc6 {[%emt 0:00:06]} Kd4 {[%emt 0:00:11]} 57. a6 {[%emt 0:00:03]} Bc5 {[%emt 0:00:02]} 58. Rc8 {[%emt 0:00:10]} Ra3 {[%emt 0:00:05]} 59. Ke2 {[%emt 0:00:01]} Rxa6 {[%emt 0:00:03]} 60. Kf3 {[%emt 0:00:02]} Re6 {[%emt 0:00:05]} 61. Rd8+ {[%emt 0:00:07]} Kxc4 {[%emt 0:00:01]} 62. Kf4 {[%emt 0:00:05]} Bd4 {[%emt 0:00:19]} 63. Kf5 {[%emt 0:00:01]} Re2 {[%emt 0:00:20]} 64. Ra8 {[%emt 0:00:06]} Kd3 {[%emt 0:00:33]} 65. Ra3+ {[%emt 0:00:02]} Bc3 {[%emt 0:00:01]} 66. Ra8 {[%emt 0:00:01]} Re5+ {[%emt 0:00:13]} 67. Kf4 {[%emt 0:00:03]} Rd5 {[%emt 0:00:08]} 68. Ra7 {[%emt 0:00:20]} Bd2+ {[%emt 0:00:17]} 69. Kf3 {[%emt 0:00:03]} Rf5+ {[%emt 0:00:04]} 70. Kg4 {[%emt 0:00:02]} Rf8 {[%emt 0:00:18]} 71. Ra3+ {[%emt 0:00:39]} Ke4 {[%emt 0:00:21]} 72. Ra4+ {[%emt 0:00:04]} Ke5 {[%emt 0:00:11]} 73. Ra7 {[%emt 0:00:51]} Bb4 {[%emt 0:00:25]} 74. Rc7 {[%emt 0:00:17]} Bd6 {[%emt 0:00:11]} 75. Rc2 Rf4+ {[%emt 0:00:17]} 76. Kg3 {[%emt 0:00:33]} Rf1 {[%emt 0:00:28]} 77. Rd2 {[%emt 0:00:31]} Ke6+ {[%emt 0:00:14]} 78. Kg2 {[%emt 0:00:01]} Rf8 {[%emt 0:00:02]} 79. Rf2 {[%emt 0:00:11]} Rg8+ {[%emt 0:00:01]} 80. Kf3 {[%emt 0:00:02]} Ke5 {[%emt 0:00:06]} 81. Rg2 {[%emt 0:00:07]} Rf8+ {[%emt 0:00:03]} 82. Ke3 {[%emt 0:00:01]} Bc5+ {[%emt 0:00:01]} 83. Kd3 {[%emt 0:00:00]} Rf4 {[%emt 0:00:41]} 84. Rg5+ {[%emt 0:00:06]} Kd6 {[%emt 0:00:03]} 85. Rg6+ {[%emt 0:00:06]} Kd5 {[%emt 0:00:01]} 86. Rg5+ {[%emt 0:00:01]} Kc6 {[%emt 0:00:01]} 87. Rg6+ {[%emt 0:00:06]} Bd6 {[%emt 0:00:04]} 88. Rg5 {[%emt 0:00:14]} Ra4 {[%emt 0:00:28]} 89. Rh5 {[%emt 0:00:06]} Kd7 {[%emt 0:00:04]} 90. Rh6 {[%emt 0:00:12]} Kc6 {[%emt 0:00:22]} 91. Rh5 {[%emt 0:00:01]} Bc5 {[%emt 0:00:16]} 92. Rh8 {[%emt 0:01:07]} Rd4+ {[%emt 0:00:15]} 93. Kc3 {[%emt 0:00:02]} Rg4 {[%emt 0:00:01]} 94. Rh5 {[%emt 0:00:25]} Kb5 {[%emt 0:00:01]} 95. Kd3 {[%emt 0:00:01]} Rd4+ {[%emt 0:00:19]} 96. Kc3 {[%emt 0:00:10]} Rd6 {[%emt 0:00:10]} 97. Rf5 {[%emt 0:00:18]} Re6 {[%emt 0:00:04]} 98. Kd3 {[%emt 0:00:04]} Re3+ {[%emt 0:00:02]} 99. Kd2 {[%emt 0:00:01]} Rh3 {[%emt 0:00:07]} 100. Ke2 {[%emt 0:00:08]} Kc4 {[%emt 0:00:02]} 101. Rf7 {[%emt 0:00:30]} Re3+ {[%emt 0:00:23]} 102. Kd2 {[%emt 0:00:03]} Re4 {[%emt 0:00:02]} 103. Rc7 {[%emt 0:00:13]} Re8 {[%emt 0:00:17]} 104. Rc6 {[%emt 0:00:08]} Kd4 {[%emt 0:00:09]} 105. Rg6 {[%emt 0:00:13]} Re4 {[%emt 0:00:12]} 106. Rg8 {[%emt 0:00:17]} Kc4 {[%emt 0:00:18]} 107. Rc8 {[%emt 0:00:03]} Re7 {[%emt 0:00:09]} 108. Rc6 {[%emt 0:00:02]} Kd4 {[%emt 0:00:03]} 109. Rc8 {[%emt 0:00:05]} Rh7 {[%emt 0:00:12]} 110. Rd8+ {[%emt 0:00:08]} Kc4 {[%emt 0:00:01]} 111. Ke2 {[%emt 0:00:25]} Rh3 {[%emt 0:00:21]} 112. Rc8 {[%emt 0:00:16]} Kd5 {[%emt 0:00:06]} 113. Rd8+ {[%emt 0:00:06]} Bd6 {[%emt 0:00:01]} 114. Ra8 {[%emt 0:00:08]} Be5 {[%emt 0:00:08]} 115. Ra4 {[%emt 0:00:18]} Bd4 {[%emt 0:00:01]} 116. Ra8 {[%emt 0:00:04]} Ke4 {[%emt 0:00:02]} 117. Re8+ {[%emt 0:00:03]} Be5 {[%emt 0:00:01]} 118. Kf2 {[%emt 0:00:16]} Rh2+ {[%emt 0:00:01]} 119. Kg1 {[%emt 0:00:02]} Rd2 {[%emt 0:00:03]} 120. Ra8 {[%emt 0:00:25]} Bf4 {[%emt 0:00:07]} 121. Ra4+ {[%emt 0:00:08]} Ke5 1/2-1/2

[Event "9th Holuj-Radzikowska Rapid 19"]
[Site "Wroclaw"]
[Date "2019.12.07"]
[Round "1"]
[White "Bodnaruk, Anastasia"]
[Black "Sliwicka, Alicja"]
[Result "1-0"]
[ECO "B23"]
[WhiteElo "2413"]
[BlackElo "2264"]
[Annotator "ChessBase"]
[PlyCount "59"]
[EventDate "2019.12.06"]
[EventType "team-tourn"]
[EventCountry "POL"]
[SourceTitle "playchess.com"]
[Source "ChessBase"]
[SourceQuality "1"]
[WhiteTeam "Team World"]
[BlackTeam "Team Poland"]
[TimeControl "900+10"]

1. e4 {[%emt 0:00:00]} c5 {[%emt 0:00:00]} 2. Nc3 {[%emt 0:00:00]} d6 {[%emt 0:00:13]} 3. d4 {[%emt 0:00:00]} cxd4 {[%emt 0:00:14]} 4. Qxd4 {[%emt 0:00:00]} Nc6 {[%emt 0:00:03]} 5. Qd2 {[%emt 0:00:01]} g6 {[%emt 0:00:04]} 6. b3 {[%emt 0:00:03]} Bh6 {[%emt 0:00:14]} 7. f4 {[%emt 0:00:05]} Nf6 {[%emt 0:00:45]} 8. Bb2 {[%emt 0:00:42]} e5 {[%emt 0:00:28]} 9. g3 {[%emt 0:00:42]} Nd4 {[%emt 0:00:14]} 10. O-O-O {[%emt 0:02:27]} O-O {[%emt 0:00:03]} 11. Kb1 {[%emt 0:00:30]} Bg4 {[%emt 0:01:36]} 12. Be2 {[%emt 0:03:15]} Nxe2 {[%emt 0:00:04]} 13. Ngxe2 {[%emt 0:00:02]} Bf3 {[%emt 0:00:13]} 14. Rhf1 {[%emt 0:00:01]} Nxe4 {[%emt 0:02:07]} 15. Nxe4 {[%emt 0:00:02]} Bxe4 {[%emt 0:00:02]} 16. Qb4 {[%emt 0:00:59]} Bf5 {[%emt 0:00:43]} 17. fxe5 {[%emt 0:00:53]} Qc8 {[%emt 0:02:03]} 18. Nd4 {[%emt 0:01:29]} Bg4 {[%emt 0:00:02]} 19. exd6 {[%emt 0:01:10]} Bxd1 {[%emt 0:00:02]} 20. Rxd1 {[%emt 0:00:01]} Qg4 {[%emt 0:00:26]} 21. Rd3 {[%emt 0:00:07]} Rad8 {[%emt 0:00:32]} 22. Nc6 {[%emt 0:00:50]} f5 {[%emt 0:00:36]} 23. Qc3 {[%emt 0:01:52]} Rd7 {[%emt 0:03:02]} 24. Qh8+ {[%emt 0:00:52]} Kf7 {[%emt 0:00:01]} 25. Qxh7+ {[%emt 0:00:25]} Ke8 {[%emt 0:01:18]} 26. Qxh6 {[%emt 0:00:11]} f4 {[%emt 0:01:15]} 27. Ne5 {[%emt 0:00:32]} Qf5 {[%emt 0:01:59]} 28. Nxd7 {[%emt 0:00:05]} Qxd7 {[%emt 0:00:11]} 29. Qxg6+ {[%emt 0:00:07]} Kd8 {[%emt 0:00:02]} 30. gxf4 {[%emt 0:00:09]} 1-0

[Event "9th Holuj-Radzikowska Rapid 19"]
[Site "Wroclaw"]
[Date "2019.12.07"]
[Round "1"]
[White "Socko, Monika"]
[Black "Arabidze, Meri"]
[Result "0-1"]
[ECO "D30"]
[WhiteElo "2407"]
[BlackElo "2435"]
[Annotator "ChessBase"]
[PlyCount "112"]
[EventDate "2019.12.06"]
[EventType "team-tourn"]
[EventCountry "POL"]
[SourceTitle "playchess.com"]
[Source "ChessBase"]
[SourceQuality "1"]
[WhiteTeam "Team Poland"]
[BlackTeam "Team World"]
[TimeControl "900+10"]

1. d4 d5 2. c4 e6 3. Nf3 Nf6 4. g3 Bb4+ 5. Nbd2 dxc4 6. Qc2 b5 7. Bg2 Bb7 8. O-O O-O 9. Rd1 a6 10. a3 Bxd2 11. Bxd2 Be4 12. Qc1 Nbd7 13. Bb4 Re8 14. Qf4 Nb6 15. Ba5 Nbd5 16. Qh4 Ne7 17. g4 Ng6 18. Qg3 Nd5 19. e3 Qd6 20. Ne5 Bxg2 21. Kxg2 Rec8 22. h4 f6 23. Nxg6 hxg6 24. g5 Qxg3+ 25. Kxg3 Ne7 26. e4 Kf7 27. f3 Nc6 28. Bc3 Rd8 29. Kf2 Rd7 30. Ke3 a5 31. d5 exd5 32. Rxd5 Rxd5 33. exd5 Ne7 34. Kd4 Rd8 35. Bxa5 Nc6+ 36. Kc5 Nxa5 37. Kxb5 Rxd5+ 38. Kb4 fxg5 39. hxg5 Rxg5 40. Rd1 Ke6 41. a4 Rf5 42. Rh1 g5 43. Rh8 Nc6+ 44. Kxc4 Rxf3 45. Kc5 Na5 46. Re8+ Kd7 47. Rg8 Rf5+ 48. Kd4 Nc6+ 49. Ke4 Rf7 50. Rh8 Rf4+ 51. Ke3 Rxa4 52. Rh7 g4 53. Rxg7+ Kc8 54. Rg5 Rb4 55. Kd3 Rxb2 56. Rxg4 Ne5+ 0-1

[Event "9th Holuj-Radzikowska Rapid 19"]
[Site "Wroclaw"]
[Date "2019.12.07"]
[Round "1"]
[White "Zawadzka, Jolanta"]
[Black "Houska, Jovanka"]
[Result "1/2-1/2"]
[ECO "B18"]
[WhiteElo "2400"]
[BlackElo "2412"]
[Annotator "ChessBase"]
[PlyCount "113"]
[EventDate "2019.12.06"]
[EventType "team-tourn"]
[EventCountry "POL"]
[SourceTitle "playchess.com"]
[Source "ChessBase"]
[SourceQuality "1"]
[WhiteTeam "Team Poland"]
[BlackTeam "Team World"]
[TimeControl "900+10"]

1. e4 {[%emt 0:00:00]} c6 {[%emt 0:00:00]} 2. d4 {[%emt 0:00:00]} d5 {[%emt 0:00:00]} 3. Nd2 {[%emt 0:00:00]} dxe4 {[%emt 0:00:04]} 4. Nxe4 {[%emt 0:00:02]} Bf5 {[%emt 0:00:01]} 5. Ng3 {[%emt 0:00:07]} Bg6 {[%emt 0:00:02]} 6. Nh3 Nd7 {[%emt 0:00:03]} 7. c3 {[%emt 0:00:13]} Ngf6 {[%emt 0:00:14]} 8. Bc4 {[%emt 0:00:19]} Nb6 {[%emt 0:00:16]} 9. Bb3 {[%emt 0:00:06]} a5 {[%emt 0:00:01]} 10. a4 {[%emt 0:00:19]} e6 {[%emt 0:00:02]} 11. Nf4 {[%emt 0:00:06]} Nbd5 {[%emt 0:00:27]} 12. Nxg6 {[%emt 0:00:33]} hxg6 {[%emt 0:00:02]} 13. Bg5 {[%emt 0:01:13]} Qc7 {[%emt 0:02:40]} 14. Qe2 {[%emt 0:04:12]} Bd6 {[%emt 0:02:26]} 15. Nf1 {[%emt 0:02:16]} O-O-O {[%emt 0:03:26]} 16. O-O-O {[%emt 0:01:32]} Bf4+ {[%emt 0:00:33]} 17. Bxf4 {[%emt 0:00:04]} Qxf4+ {[%emt 0:00:01]} 18. Kb1 {[%emt 0:02:46]} Qe4+ {[%emt 0:00:27]} 19. Qc2 {[%emt 0:01:46]} Qxg2 {[%emt 0:00:20]} 20. Ne3 {[%emt 0:00:02]} Nxe3 {[%emt 0:00:20]} 21. fxe3 {[%emt 0:00:01]} Qxc2+ {[%emt 0:00:01]} 22. Kxc2 {[%emt 0:00:02]} Ng4 {[%emt 0:00:02]} 23. Rde1 {[%emt 0:00:25]} Rh3 {[%emt 0:01:34]} 24. e4 {[%emt 0:00:23]} Rdh8 {[%emt 0:00:03]} 25. Kb1 {[%emt 0:00:34]} Rxh2 {[%emt 0:00:16]} 26. Rhg1 {[%emt 0:00:01]} R8h4 {[%emt 0:01:16]} 27. d5 {[%emt 0:00:12]} cxd5 {[%emt 0:00:32]} 28. exd5 {[%emt 0:00:02]} e5 {[%emt 0:00:02]} 29. Bd1 {[%emt 0:00:09]} Nf2 {[%emt 0:00:53]} 30. Rxe5 {[%emt 0:00:53]} Rh1 {[%emt 0:01:43]} 31. Ree1 {[%emt 0:00:32]} Rxg1 {[%emt 0:00:08]} 32. Rxg1 {[%emt 0:00:01]} Nxd1 {[%emt 0:00:02]} 33. Rxd1 {[%emt 0:00:02]} Rxa4 {[%emt 0:00:07]} 34. Rf1 {[%emt 0:00:09]} f6 {[%emt 0:00:03]} 35. Rh1 {[%emt 0:00:16]} Kd7 {[%emt 0:00:12]} 36. Rh7 {[%emt 0:00:20]} Kd6 {[%emt 0:00:01]} 37. Rxg7 {[%emt 0:00:02]} g5 {[%emt 0:00:01]} 38. b3 {[%emt 0:00:17]} Rf4 {[%emt 0:00:20]} 39. c4 {[%emt 0:00:07]} b5 {[%emt 0:00:00]} 40. Rf7 {[%emt 0:00:18]} bxc4 {[%emt 0:02:07]} 41. bxc4 {[%emt 0:00:03]} Rxc4 {[%emt 0:00:06]} 42. Rxf6+ Ke5 43. Rg6 {[%emt 0:00:10]} g4 {[%emt 0:00:03]} 44. d6 {[%emt 0:00:02]} Rd4 {[%emt 0:00:42]} 45. d7 {[%emt 0:00:08]} Kf4 {[%emt 0:00:09]} 46. Rg7 {[%emt 0:00:01]} g3 {[%emt 0:00:05]} 47. Kc2 {[%emt 0:00:24]} Kf3 {[%emt 0:00:03]} 48. Rf7+ {[%emt 0:00:10]} Ke2 {[%emt 0:00:14]} 49. Re7+ {[%emt 0:00:03]} Kf1 {[%emt 0:00:01]} 50. Rf7+ {[%emt 0:00:24]} Kg1 {[%emt 0:00:01]} 51. Kc3 {[%emt 0:00:50]} Rd1 {[%emt 0:00:05]} 52. Rf3 {[%emt 0:00:28]} g2 {[%emt 0:00:58]} 53. Rd3 {[%emt 0:00:03]} Rxd3+ {[%emt 0:00:03]} 54. Kxd3 {[%emt 0:00:02]} Kf1 {[%emt 0:00:03]} 55. d8=Q {[%emt 0:00:02]} g1=Q {[%emt 0:00:02]} 56. Qxa5 {[%emt 0:00:11]} Qg3+ {[%emt 0:00:05]} 57. Kc2 {[%emt 0:00:03]} 1/2-1/2

[Event "9th Holuj-Radzikowska Rapid 19"]
[Site "Wroclaw"]
[Date "2019.12.07"]
[Round "1"]
[White "Badelka, Olga"]
[Black "Cyfka, Karina"]
[Result "1-0"]
[ECO "A20"]
[WhiteElo "2399"]
[BlackElo "2410"]
[Annotator "ChessBase"]
[PlyCount "61"]
[EventDate "2019.12.06"]
[EventType "team-tourn"]
[EventCountry "POL"]
[SourceTitle "playchess.com"]
[Source "ChessBase"]
[SourceQuality "1"]
[WhiteTeam "Team World"]
[BlackTeam "Team Poland"]
[TimeControl "900+10"]

1. c4 e5 2. g3 Nf6 3. Bg2 d5 4. cxd5 Nxd5 5. Nf3 Nc6 6. O-O Be7 7. d4 e4 8. Ne5 f5 9. Nxc6 bxc6 10. Qa4 Qd6 11. Nc3 Nb6 12. Qd1 Be6 13. Bf4 Qd7 14. Na4 Rb8 15. Nc5 Bxc5 16. dxc5 Qxd1 17. Rfxd1 Nd5 18. Be5 Kf7 19. a3 Nf6 20. e3 Rxb2 21. Bxc7 Rb1 22. Raxb1 Bc8 23. Bf1 Nd5 24. Bd6 Rd8 25. Rb8 Ke6 26. Ba6 Kd7 27. Bxc8+ Rxc8 28. Rb7+ Ke6 29. Rxg7 Ra8 30. Rxh7 Nc3 31. Re7+ {Kd5 Re5+ Kc4 Rxf5 Kb3 Be5 Na4 Bd4 Kxa3 h4 Nb2 h5 Nd3 h6 Nc1 Bg7} 1-0

[Event "9th Holuj-Radzikowska Rapid 19"]
[Site "Wroclaw"]
[Date "2019.12.07"]
[Round "1"]
[White "Majdan, Joanna"]
[Black "Bulmaga, Irina"]
[Result "1/2-1/2"]
[ECO "C92"]
[WhiteElo "2336"]
[BlackElo "2434"]
[Annotator "ChessBase"]
[PlyCount "98"]
[EventDate "2019.12.06"]
[EventType "team-tourn"]
[EventCountry "POL"]
[SourceTitle "playchess.com"]
[Source "ChessBase"]
[SourceQuality "1"]
[WhiteTeam "Team Poland"]
[BlackTeam "Team World"]
[TimeControl "900+10"]

1. e4 e5 {[%emt 0:00:00]} 2. Nf3 {[%emt 0:00:00]} Nc6 3. Bb5 a6 {[%emt 0:00:00]} 4. Ba4 {[%emt 0:00:04]} Nf6 {[%emt 0:00:00]} 5. O-O {[%emt 0:00:04]} b5 {[%emt 0:00:00]} 6. Bb3 {[%emt 0:00:02]} Be7 {[%emt 0:00:01]} 7. Re1 {[%emt 0:00:11]} O-O {[%emt 0:00:03]} 8. c3 {[%emt 0:00:11]} d6 {[%emt 0:00:01]} 9. h3 {[%emt 0:00:05]} Bb7 {[%emt 0:00:02]} 10. d4 {[%emt 0:00:07]} Nd7 {[%emt 0:00:02]} 11. Nbd2 {[%emt 0:00:04]} exd4 {[%emt 0:00:15]} 12. cxd4 {[%emt 0:00:02]} Bf6 {[%emt 0:00:01]} 13. Nf1 {[%emt 0:00:01]} Na5 {[%emt 0:00:11]} 14. Bc2 {[%emt 0:00:04]} Re8 {[%emt 0:00:05]} 15. Rb1 {[%emt 0:00:59]} c5 {[%emt 0:00:08]} 16. d5 {[%emt 0:00:02]} Nc4 {[%emt 0:00:02]} 17. b3 {[%emt 0:00:02]} Nce5 {[%emt 0:00:03]} 18. N3h2 {[%emt 0:00:06]} a5 {[%emt 0:01:03]} 19. Ng3 {[%emt 0:00:20]} Ng6 {[%emt 0:00:20]} 20. Rf1 {[%emt 0:00:19]} Bc8 {[%emt 0:00:08]} 21. f4 {[%emt 0:00:55]} Nb6 22. Ng4 Bd4+ {[%emt 0:01:20]} 23. Kh2 {[%emt 0:01:45]} b4 {[%emt 0:02:50]} 24. Bb2 {[%emt 0:03:31]} Bxb2 {[%emt 0:00:12]} 25. Rxb2 {[%emt 0:00:02]} f6 {[%emt 0:00:13]} 26. Bd3 {[%emt 0:00:16]} a4 {[%emt 0:00:17]} 27. Ne3 {[%emt 0:00:59]} axb3 {[%emt 0:00:31]} 28. axb3 {[%emt 0:00:02]} Ba6 {[%emt 0:00:10]} 29. Bxa6 {[%emt 0:00:47]} Rxa6 {[%emt 0:00:02]} 30. Ngf5 {[%emt 0:00:37]} Ra3 {[%emt 0:00:55]} 31. Qd3 {[%emt 0:00:34]} Na4 {[%emt 0:00:46]} 32. Rbf2 {[%emt 0:02:17]} Nc3 {[%emt 0:00:45]} 33. Nc4 {[%emt 0:00:13]} Ra6 {[%emt 0:00:06]} 34. Re1 {[%emt 0:01:12]} Ne7 {[%emt 0:00:27]} 35. Nxe7+ {[%emt 0:02:00]} Qxe7 36. e5 Qb7 {[%emt 0:01:05]} 37. Rd2 {[%emt 0:00:38]} dxe5 38. fxe5 fxe5 {[%emt 0:01:23]} 39. d6 {[%emt 0:00:53]} e4 {[%emt 0:00:00]} 40. Qe3 {[%emt 0:00:06]} Qc6 {[%emt 0:00:55]} 41. Ne5 {[%emt 0:00:34]} Qb6 {[%emt 0:03:06]} 42. Qf4 Raa8 43. Qf7+ Kh8 44. Qh5 Kg8 45. Qf7+ Kh8 46. Qh5 Kg8 47. Qf7+ {[%emt 0:01:21]} Kh8 {[%emt 0:01:55]} 48. Qh5 Kg8 49. d7 Re7 1/2-1/2

[Event "9th Holuj-Radzikowska Rapid 19"]
[Site "Wroclaw"]
[Date "2019.12.07"]
[Round "2"]
[White "Arabidze, Meri"]
[Black "Majdan, Joanna"]
[Result "1-0"]
[ECO "A06"]
[WhiteElo "2435"]
[BlackElo "2336"]
[Annotator "NA"]
[PlyCount "87"]
[EventDate "2019.12.06"]
[EventType "team-tourn"]
[EventCountry "POL"]
[SourceTitle "playchess.com"]
[Source "ChessBase"]
[SourceQuality "1"]
[WhiteTeam "Team World"]
[BlackTeam "Team Poland"]
[TimeControl "900+10"]

1. Nf3 d5 2. e3 Nf6 3. b3 g6 4. Bb2 Bg7 5. c4 c6 6. Be2 O-O 7. O-O a5 8. d4 a4 9. b4 dxc4 10. Bxc4 Nbd7 11. a3 Nb6 12. Ba2 Ne4 13. Nbd2 Bf5 14. Rc1 Nxd2 15. Qxd2 Be4 16. Qe2 Qd7 17. Nd2 Bd5 18. Bb1 Rad8 19. Ne4 Qc7 20. Nc5 e5 21. dxe5 Bxe5 22. Bxe5 Qxe5 23. Nxb7 Rde8 24. Nc5 f5 25. Qd2 Rd8 26. Qc3 Qe7 27. Rfe1 Qg5 28. e4 fxe4 29. Bxe4 Rd6 30. Qg3 Qxg3 31. hxg3 Nc4 32. Rc3 Nd2 33. Bxd5+ cxd5 34. Rd1 Nb3 35. Nxb3 axb3 36. Rxb3 Ra8 37. Rbd3 Kf7 38. Rxd5 Rxd5 39. Rxd5 Rxa3 40. Rd7+ Kf6 41. Rxh7 Ra1+ 42. Kh2 Rf1 43. f3 Rb1 44. Rb7 1-0

[Event "9th Holuj-Radzikowska Rapid 19"]
[Site "Wroclaw"]
[Date "2019.12.07"]
[Round "2"]
[White "Bulmaga, Irina"]
[Black "Zawadzka, Jolanta"]
[Result "0-1"]
[ECO "C67"]
[WhiteElo "2434"]
[BlackElo "2400"]
[Annotator "NA"]
[PlyCount "118"]
[EventDate "2019.12.06"]
[EventType "team-tourn"]
[EventCountry "POL"]
[SourceTitle "playchess.com"]
[Source "ChessBase"]
[SourceQuality "1"]
[WhiteTeam "Team World"]
[BlackTeam "Team Poland"]
[TimeControl "900+10"]

1. e4 e5 2. Nf3 Nc6 3. Bb5 Nf6 4. O-O Nxe4 5. d4 Nd6 6. dxe5 Nxb5 7. a4 Nbd4 8. Nxd4 Nxd4 9. Qxd4 d5 {C67: Ruy Lopez: Berlin Defence: 4 0-0 Nxe4} 10. c4 (10. Qd3 c6 11. a5 Be6 12. Nc3 Qd7 13. Ne2 Bf5 14. Qc3 Be7 15. Bh6 d4 16. Nxd4 gxh6 17. e6 Bxe6 18. Nxe6 {1-0 (30) Vitiugov,N (2726)-Harikrishna,P (2730) Prague 2019}) 10... Be6 11. c5 g6 $146 ({Predecessor:} 11... Be7 12. b4 O-O 13. Ra3 Bf5 14. Nc3 c6 15. a5 f6 16. Bf4 fxe5 17. Bxe5 {1-0 (64) Rogulj,B (2440)-Karaklajic,N (2460) Pula 1979}) 12. a5 Bg7 13. b4 a6 14. Bb2 O-O 15. Nd2 Qe7 16. f4 f6 17. Rae1 c6 18. Nf3 Rae8 19. Qd2 Qf7 20. Nd4 fxe5 21. fxe5 Qe7 22. Qe3 Rxf1+ 23. Rxf1 Bc8 24. e6 Bxe6 25. Re1 Qd7 26. h3 Bf7 27. Qf2 Rxe1+ 28. Qxe1 Qe8 29. Qxe8+ Bxe8 30. Kf2 g5 31. Ke3 Bg6 32. Bc3 Be5 33. Ne2 Bc7 $19 34. Bf6 h6 35. Kd4 Be4 36. g3 Kf7 37. Be5 Bd8 38. g4 Bg2 39. Ng3 Bxh3 40. Nf5 Kg6 41. Nd6 Bxg4 42. Nxb7 Be7 43. Nd6 Bd7 44. b5 cxb5 45. Kxd5 Bg4 46. c6 Bxd6 47. Kxd6 Kf7 48. c7 b4 49. Kc5 b3 50. Kb6 Bc8 51. Kc5 Ke6 52. Bd4 g4 53. Kc4 h5 54. Kxb3 h4 55. Bf2 g3 56. Be1 Kd5 57. Kc2 Ke4 58. Kd1 Kf3 59. Bb4 h3 0-1